[Event "Titled Tuesday Blitz April 11 Early 2023"]
[White "Ilkhomi, Jaloliddin"]
[Black "Vidit, Santosh Gujrathi"]
[WhiteFideId "14700948"]
[BlackFideId "5029465"]
[WhiteElo "2045"]
[BlackElo "2651"]
[Result "0-1"]
[Round "03"]
[TimeControl "180+2"]
[Date "2023.04.11"]
[WhiteClock "0:00:42"]
[BlackClock "0:00:42"]

1. Nf3 {[%clk 0:03:00]}  d5 {[%clk 0:02:58]} 2. d4 {[%clk 0:02:59]}  Nf6 {[%clk 0:02:58]} 3. Bf4 {[%clk 0:02:59]}  c5 {[%clk 0:02:57]} 4. e3 {[%clk 0:03:00]}  e6 {[%clk 0:02:55]} 5. c3 {[%clk 0:03:00]}  Nc6 {[%clk 0:02:50]} 6. Nbd2 {[%clk 0:02:59]}  Be7 {[%clk 0:02:50]} 7. Bd3 {[%clk 0:03:00]}  Nh5 {[%clk 0:02:48]} 8. Be5 {[%clk 0:03:00]}  O-O {[%clk 0:02:44]} 9. h4 {[%clk 0:02:59]}  Nf6 {[%clk 0:02:33]} 10. Rh3 {[%clk 0:02:48]}  h6 {[%clk 0:02:20]} 11. Bxf6 {[%clk 0:02:39]}  Bxf6 {[%clk 0:02:20]} 12. g4 {[%clk 0:02:40]}  e5 {[%clk 0:02:18]} 13. dxe5 {[%clk 0:02:28]}  Bxe5 {[%clk 0:01:51]} 14. Nxe5 {[%clk 0:02:22]}  Nxe5 {[%clk 0:01:52]} 15. Be2 {[%clk 0:02:23]}  h5 {[%clk 0:01:51]} 16. Rg3 {[%clk 0:02:21]}  hxg4 {[%clk 0:01:46]} 17. Qc2 {[%clk 0:02:11]}  Qf6 {[%clk 0:01:46]} 18. Qa4 {[%clk 0:01:58]}  Qxh4 {[%clk 0:01:28]} 19. O-O-O {[%clk 0:01:57]}  Qf6 {[%clk 0:01:28]} 20. Rh1 {[%clk 0:01:53]}  Qxf2 {[%clk 0:01:08]} 21. Rxg4 {[%clk 0:01:43]}  Bxg4 {[%clk 0:01:06]} 22. Bxg4 {[%clk 0:01:43]}  g6 {[%clk 0:00:54]} 23. Bd1 {[%clk 0:01:36]}  Kg7 {[%clk 0:00:53]} 24. Rf1 {[%clk 0:01:15]}  Qxe3 {[%clk 0:00:52]} 25. Qh4 {[%clk 0:01:16]}  f5 {[%clk 0:00:52]} 26. Bc2 {[%clk 0:01:07]}  Rae8 {[%clk 0:00:47]} 27. Kd1 {[%clk 0:00:51]}  Nc4 {[%clk 0:00:44]} 28. Qh2 {[%clk 0:00:40]}  Qxd2+ {[%clk 0:00:44]} 29. Qxd2 {[%clk 0:00:41]}  Nxd2 {[%clk 0:00:45]} 30. Kxd2 {[%clk 0:00:42]}  Rh8 {[%clk 0:00:45]} 31. Rg1 {[%clk 0:00:42]}  Rh2+ {[%clk 0:00:44]} 32. Kd1 {[%clk 0:00:43]}  Kf6 {[%clk 0:00:44]} 33. Bd3 {[%clk 0:00:42]}  Rxb2 {[%clk 0:00:44]} 34. c4 {[%clk 0:00:41]}  dxc4 {[%clk 0:00:42]} 35. Bxc4 {[%clk 0:00:42]}  Rb1+ {[%clk 0:00:42]} 0-1


[Site "https://www.chess.com"]

[Event "Titled Tuesday Blitz April 11 Early 2023"]
[White "Korobov, Anton"]
[Black "Rohith Krishna S"]
[WhiteFideId "14105730"]
[BlackFideId "46617051"]
[WhiteElo "2638"]
[BlackElo "2270"]
[Result "1-0"]
[Round "03"]
[TimeControl "180+2"]
[Date "2023.04.11"]
[WhiteClock "0:00:42"]
[BlackClock "0:00:17"]

1. d4 {[%clk 0:02:58]}  Nf6 {[%clk 0:02:58]} 2. c4 {[%clk 0:02:56]}  c5 {[%clk 0:02:58]} 3. d5 {[%clk 0:02:56]}  e6 {[%clk 0:02:58]} 4. Nc3 {[%clk 0:02:56]}  exd5 {[%clk 0:02:57]} 5. cxd5 {[%clk 0:02:57]}  g6 {[%clk 0:02:57]} 6. Nf3 {[%clk 0:02:57]}  d6 {[%clk 0:02:56]} 7. Nd2 {[%clk 0:02:57]}  Bg7 {[%clk 0:02:56]} 8. e4 {[%clk 0:02:57]}  O-O {[%clk 0:02:56]} 9. Be2 {[%clk 0:02:58]}  Na6 {[%clk 0:02:55]} 10. O-O {[%clk 0:02:57]}  Nc7 {[%clk 0:02:56]} 11. a4 {[%clk 0:02:54]}  Rb8 {[%clk 0:02:54]} 12. Kh1 {[%clk 0:02:50]}  b6 {[%clk 0:02:53]} 13. Nc4 {[%clk 0:02:40]}  a6 {[%clk 0:02:52]} 14. Bf4 {[%clk 0:02:35]}  Nfe8 {[%clk 0:02:52]} 15. e5 {[%clk 0:02:26]}  dxe5 {[%clk 0:02:46]} 16. Nxe5 {[%clk 0:02:27]}  Bb7 {[%clk 0:02:45]} 17. Nc6 {[%clk 0:02:22]}  Bxc6 {[%clk 0:02:43]} 18. dxc6 {[%clk 0:02:23]}  Qf6 {[%clk 0:02:43]} 19. Nd5 {[%clk 0:02:13]}  Nxd5 {[%clk 0:02:19]} 20. Bxb8 {[%clk 0:02:13]}  Nb4 {[%clk 0:02:17]} 21. c7 {[%clk 0:02:07]}  Nd6 {[%clk 0:02:17]} 22. Bf3 {[%clk 0:01:47]}  h5 {[%clk 0:01:59]} 23. Re1 {[%clk 0:01:42]}  c4 {[%clk 0:01:37]} 24. Ra3 {[%clk 0:01:40]}  Nd3 {[%clk 0:01:37]} 25. Rxd3 {[%clk 0:01:37]}  cxd3 {[%clk 0:01:37]} 26. Qxd3 {[%clk 0:01:38]}  Rc8 {[%clk 0:01:17]} 27. h3 {[%clk 0:01:26]}  Bf8 {[%clk 0:01:16]} 28. b4 {[%clk 0:01:16]}  Qf4 {[%clk 0:01:08]} 29. Rb1 {[%clk 0:01:07]}  b5 {[%clk 0:01:02]} 30. axb5 {[%clk 0:01:07]}  axb5 {[%clk 0:00:56]} 31. Qe3 {[%clk 0:01:03]}  Qf5 {[%clk 0:00:55]} 32. Rd1 {[%clk 0:01:03]}  Re8 {[%clk 0:00:52]} 33. Qc5 {[%clk 0:00:50]}  Re5 {[%clk 0:00:40]} 34. c8=Q {[%clk 0:00:43]}  Qxc8 {[%clk 0:00:17]} 35. Qxc8 {[%clk 0:00:42]} 1-0


[Site "https://www.chess.com"]

[Event "Titled Tuesday Blitz April 11 Early 2023"]
[White "Wong, Yinn Long"]
[Black "Oparin, Grigoriy"]
[WhiteFideId "5707684"]
[BlackFideId "24125890"]
[WhiteElo "2271"]
[BlackElo "2647"]
[Result "0-1"]
[Round "03"]
[TimeControl "180+2"]
[Date "2023.04.11"]
[WhiteClock "0:00:03"]
[BlackClock "0:00:14"]

1. d4 {[%clk 0:03:00]}  Nf6 {[%clk 0:02:56]} 2. Nc3 {[%clk 0:03:00]}  e6 {[%clk 0:02:55]} 3. e4 {[%clk 0:03:00]}  d5 {[%clk 0:02:56]} 4. Bg5 {[%clk 0:02:59]}  dxe4 {[%clk 0:02:55]} 5. Nxe4 {[%clk 0:02:59]}  Be7 {[%clk 0:02:56]} 6. Bxf6 {[%clk 0:02:59]}  gxf6 {[%clk 0:02:57]} 7. Nf3 {[%clk 0:02:58]}  f5 {[%clk 0:02:57]} 8. Nc3 {[%clk 0:02:57]}  a6 {[%clk 0:02:53]} 9. g3 {[%clk 0:02:57]}  b5 {[%clk 0:02:52]} 10. Bg2 {[%clk 0:02:58]}  Bb7 {[%clk 0:02:53]} 11. O-O {[%clk 0:02:58]}  O-O {[%clk 0:02:49]} 12. Qe2 {[%clk 0:02:47]}  b4 {[%clk 0:02:42]} 13. Na4 {[%clk 0:02:47]}  Nd7 {[%clk 0:02:39]} 14. Rad1 {[%clk 0:02:25]}  Qe8 {[%clk 0:02:31]} 15. b3 {[%clk 0:02:17]}  a5 {[%clk 0:02:32]} 16. Qe3 {[%clk 0:02:13]}  Nf6 {[%clk 0:02:27]} 17. Ne5 {[%clk 0:02:06]}  Bxg2 {[%clk 0:02:26]} 18. Kxg2 {[%clk 0:02:07]}  Nd5 {[%clk 0:02:24]} 19. Qh6 {[%clk 0:02:06]}  Kh8 {[%clk 0:02:04]} 20. Qh5 {[%clk 0:02:01]}  f6 {[%clk 0:02:01]} 21. Qxe8 {[%clk 0:02:01]}  Rfxe8 {[%clk 0:02:01]} 22. Nd3 {[%clk 0:01:55]}  Kg7 {[%clk 0:02:01]} 23. Rfe1 {[%clk 0:01:54]}  Kf7 {[%clk 0:02:01]} 24. Kf3 {[%clk 0:01:47]}  Bd6 {[%clk 0:02:01]} 25. Ndb2 {[%clk 0:01:34]}  c6 {[%clk 0:01:49]} 26. Nc4 {[%clk 0:01:33]}  Bc7 {[%clk 0:01:50]} 27. Ne3 {[%clk 0:01:27]}  Rad8 {[%clk 0:01:41]} 28. Nc4 {[%clk 0:01:25]}  e5 {[%clk 0:01:38]} 29. dxe5 {[%clk 0:01:10]}  fxe5 {[%clk 0:01:39]} 30. Ke2 {[%clk 0:01:11]}  e4 {[%clk 0:01:35]} 31. Ne3 {[%clk 0:01:11]}  Kf6 {[%clk 0:01:32]} 32. Rd2 {[%clk 0:01:04]}  f4 {[%clk 0:01:28]} 33. Nc4 {[%clk 0:00:34]}  f3+ {[%clk 0:01:01]} 34. Kf1 {[%clk 0:00:21]}  Kf5 {[%clk 0:00:37]} 35. Nc5 {[%clk 0:00:19]}  Nc3 {[%clk 0:00:34]} 36. Ne3+ {[%clk 0:00:16]}  Kf6 {[%clk 0:00:33]} 37. Nc4 {[%clk 0:00:16]}  Rd5 {[%clk 0:00:21]} 38. Na6 {[%clk 0:00:10]}  Be5 {[%clk 0:00:15]} 39. Rxd5 {[%clk 0:00:06]}  cxd5 {[%clk 0:00:16]} 40. Ne3 {[%clk 0:00:06]}  Rc8 {[%clk 0:00:14]} 41. h3 {[%clk 0:00:04]}  Ke6 {[%clk 0:00:14]} 42. Ng4 {[%clk 0:00:01]}  Nxa2 {[%clk 0:00:13]} 43. Nxe5 {[%clk 0:00:01]}  Kxe5 {[%clk 0:00:13]} 44. Ra1 {[%clk 0:00:02]}  Rxc2 {[%clk 0:00:14]} 45. Nb8 {[%clk 0:00:02]}  Kd6 {[%clk 0:00:13]} 46. Ke1 {[%clk 0:00:02]}  d4 {[%clk 0:00:13]} 47. Na6 {[%clk 0:00:02]}  d3 {[%clk 0:00:13]} 48. Kd1 {[%clk 0:00:03]}  Nc3+ {[%clk 0:00:14]} 0-1


[Site "https://www.chess.com"]

[Event "Titled Tuesday Blitz April 11 Early 2023"]
[White "Kramnik, Vladimir"]
[Black "Aradhya, Garg"]
[WhiteFideId "4101588"]
[BlackFideId "25006746"]
[WhiteElo "2712"]
[BlackElo "2263"]
[Result "1-0"]
[Round "03"]
[TimeControl "180+2"]
[Date "2023.04.11"]
[WhiteClock "0:00:31"]
[BlackClock "0:00:55"]

1. e4 {[%clk 0:03:00]}  e5 {[%clk 0:02:59]} 2. Nf3 {[%clk 0:03:00]}  Nc6 {[%clk 0:02:59]} 3. g3 {[%clk 0:02:59]}  d5 {[%clk 0:02:57]} 4. exd5 {[%clk 0:02:59]}  Nd4 {[%clk 0:02:57]} 5. Nxd4 {[%clk 0:02:51]}  Qxd5 {[%clk 0:02:55]} 6. Qf3 {[%clk 0:02:37]}  Qxd4 {[%clk 0:02:54]} 7. Nc3 {[%clk 0:02:36]}  Nf6 {[%clk 0:02:53]} 8. Bg2 {[%clk 0:02:35]}  Bc5 {[%clk 0:02:52]} 9. O-O {[%clk 0:02:30]}  O-O {[%clk 0:02:51]} 10. d3 {[%clk 0:02:29]}  c6 {[%clk 0:02:51]} 11. Be3 {[%clk 0:02:25]}  Qd6 {[%clk 0:02:51]} 12. Bxc5 {[%clk 0:02:21]}  Qxc5 {[%clk 0:02:52]} 13. Rfe1 {[%clk 0:02:18]}  Re8 {[%clk 0:02:40]} 14. a3 {[%clk 0:02:16]}  a5 {[%clk 0:02:38]} 15. h3 {[%clk 0:02:15]}  a4 {[%clk 0:02:37]} 16. g4 {[%clk 0:02:12]}  Be6 {[%clk 0:02:34]} 17. Qe3 {[%clk 0:02:05]}  Qxe3 {[%clk 0:02:32]} 18. Rxe3 {[%clk 0:02:05]}  Nd7 {[%clk 0:02:32]} 19. Ne4 {[%clk 0:02:04]}  f6 {[%clk 0:02:23]} 20. Nd6 {[%clk 0:02:01]}  Re7 {[%clk 0:02:10]} 21. Rae1 {[%clk 0:01:54]}  Nc5 {[%clk 0:02:07]} 22. Kh2 {[%clk 0:01:42]}  Rd8 {[%clk 0:02:06]} 23. Ne4 {[%clk 0:01:41]}  Nxe4 {[%clk 0:02:04]} 24. Rxe4 {[%clk 0:01:41]}  b5 {[%clk 0:01:59]} 25. f4 {[%clk 0:01:41]}  Bd5 {[%clk 0:01:59]} 26. R4e3 {[%clk 0:01:40]}  Bxg2 {[%clk 0:01:59]} 27. Kxg2 {[%clk 0:01:40]}  Rd5 {[%clk 0:01:58]} 28. Kf3 {[%clk 0:01:38]}  Kf7 {[%clk 0:01:58]} 29. Re4 {[%clk 0:01:34]}  Ke6 {[%clk 0:01:53]} 30. fxe5 {[%clk 0:01:27]}  fxe5 {[%clk 0:01:52]} 31. Kg3 {[%clk 0:01:26]}  c5 {[%clk 0:01:48]} 32. h4 {[%clk 0:01:23]}  Kd6 {[%clk 0:01:43]} 33. Rf1 {[%clk 0:01:21]}  Rd4 {[%clk 0:01:43]} 34. g5 {[%clk 0:01:17]}  c4 {[%clk 0:01:42]} 35. Re3 {[%clk 0:00:57]}  cxd3 {[%clk 0:01:32]} 36. cxd3 {[%clk 0:00:57]}  e4 {[%clk 0:01:32]} 37. dxe4 {[%clk 0:00:51]}  Rexe4 {[%clk 0:01:31]} 38. Rxe4 {[%clk 0:00:51]}  Rxe4 {[%clk 0:01:32]} 39. Rf7 {[%clk 0:00:51]}  Re7 {[%clk 0:01:24]} 40. Rf5 {[%clk 0:00:47]}  Re3+ {[%clk 0:01:18]} 41. Kg4 {[%clk 0:00:45]}  Rb3 {[%clk 0:01:17]} 42. Rf7 {[%clk 0:00:45]}  Rxb2 {[%clk 0:01:12]} 43. Rxg7 {[%clk 0:00:45]}  b4 {[%clk 0:01:12]} 44. axb4 {[%clk 0:00:39]}  Rxb4+ {[%clk 0:01:12]} 45. Kh5 {[%clk 0:00:39]}  Kc6 {[%clk 0:01:07]} 46. Rxh7 {[%clk 0:00:38]}  Rb8 {[%clk 0:00:55]} 47. Ra7 {[%clk 0:00:34]}  Rh8+ {[%clk 0:00:55]} 48. Kg4 {[%clk 0:00:33]}  Kb5 {[%clk 0:00:55]} 49. g6 {[%clk 0:00:33]}  Kb4 {[%clk 0:00:55]} 50. h5 {[%clk 0:00:33]}  Rg8 {[%clk 0:00:55]} 51. Kg5 {[%clk 0:00:33]}  Rc8 {[%clk 0:00:55]} 52. g7 {[%clk 0:00:31]} 1-0


[Site "https://www.chess.com"]

[Event "Titled Tuesday Blitz April 11 Early 2023"]
[White "Brodowski, Piotr"]
[Black "Indjic, Aleksandar"]
[WhiteFideId "1124480"]
[BlackFideId "911925"]
[WhiteElo "2351"]
[BlackElo "2614"]
[Result "0-1"]
[Round "03"]
[TimeControl "180+2"]
[Date "2023.04.11"]
[WhiteClock "0:00:04"]
[BlackClock "0:00:16"]

1. Nf3 {[%clk 0:02:59]}  c5 {[%clk 0:03:00]} 2. e4 {[%clk 0:02:58]}  e6 {[%clk 0:03:00]} 3. d4 {[%clk 0:02:55]}  cxd4 {[%clk 0:03:01]} 4. Nxd4 {[%clk 0:02:55]}  a6 {[%clk 0:03:00]} 5. Be3 {[%clk 0:02:43]}  Nf6 {[%clk 0:02:57]} 6. Bd3 {[%clk 0:02:34]}  e5 {[%clk 0:02:49]} 7. Nb3 {[%clk 0:02:32]}  d6 {[%clk 0:02:47]} 8. c4 {[%clk 0:02:27]}  Ng4 {[%clk 0:02:35]} 9. Bc1 {[%clk 0:02:08]}  Qh4 {[%clk 0:02:34]} 10. g3 {[%clk 0:02:06]}  Qd8 {[%clk 0:02:30]} 11. Be2 {[%clk 0:02:05]}  h5 {[%clk 0:02:27]} 12. Nc3 {[%clk 0:02:04]}  Be6 {[%clk 0:02:26]} 13. h3 {[%clk 0:02:02]}  Nf6 {[%clk 0:02:26]} 14. Bg5 {[%clk 0:02:02]}  Nbd7 {[%clk 0:02:25]} 15. Rc1 {[%clk 0:01:33]}  Be7 {[%clk 0:02:24]} 16. Nd2 {[%clk 0:01:22]}  g6 {[%clk 0:02:17]} 17. Nf1 {[%clk 0:01:12]}  Nc5 {[%clk 0:02:07]} 18. Bxf6 {[%clk 0:01:12]}  Bxf6 {[%clk 0:02:08]} 19. Ne3 {[%clk 0:01:11]}  h4 {[%clk 0:02:07]} 20. b4 {[%clk 0:01:03]}  hxg3 {[%clk 0:01:58]} 21. bxc5 {[%clk 0:01:03]}  gxf2+ {[%clk 0:01:58]} 22. Kxf2 {[%clk 0:01:03]}  Bh4+ {[%clk 0:01:58]} 23. Kg1 {[%clk 0:01:02]}  Bg5 {[%clk 0:01:44]} 24. Ncd5 {[%clk 0:00:55]}  Qa5 {[%clk 0:01:19]} 25. Rb1 {[%clk 0:00:51]}  Qxc5 {[%clk 0:01:18]} 26. Rb3 {[%clk 0:00:31]}  Bxd5 {[%clk 0:01:17]} 27. Qxd5 {[%clk 0:00:31]}  Bxe3+ {[%clk 0:01:16]} 28. Kg2 {[%clk 0:00:32]}  Rb8 {[%clk 0:01:10]} 29. Rf1 {[%clk 0:00:28]}  Qxd5 {[%clk 0:01:06]} 30. cxd5 {[%clk 0:00:27]}  Bc5 {[%clk 0:00:59]} 31. Bxa6 {[%clk 0:00:27]}  b6 {[%clk 0:00:58]} 32. Bb5+ {[%clk 0:00:25]}  Ke7 {[%clk 0:00:58]} 33. Rbf3 {[%clk 0:00:26]}  Rbf8 {[%clk 0:00:57]} 34. a4 {[%clk 0:00:23]}  Rh4 {[%clk 0:00:56]} 35. Re1 {[%clk 0:00:23]}  f5 {[%clk 0:00:55]} 36. Bd3 {[%clk 0:00:21]}  f4 {[%clk 0:00:43]} 37. Be2 {[%clk 0:00:21]}  Ra8 {[%clk 0:00:36]} 38. Ra1 {[%clk 0:00:21]}  Bd4 {[%clk 0:00:31]} 39. Ra2 {[%clk 0:00:19]}  Rc8 {[%clk 0:00:31]} 40. Rf1 {[%clk 0:00:12]}  Rc3 {[%clk 0:00:30]} 41. Rf3 {[%clk 0:00:12]}  Rc7 {[%clk 0:00:22]} 42. a5 {[%clk 0:00:08]}  bxa5 {[%clk 0:00:21]} 43. Rxa5 {[%clk 0:00:08]}  Rc2 {[%clk 0:00:20]} 44. Kf1 {[%clk 0:00:08]}  Rh8 {[%clk 0:00:19]} 45. Rb3 {[%clk 0:00:07]}  Kf6 {[%clk 0:00:17]} 46. Ra6 {[%clk 0:00:06]}  Bc5 {[%clk 0:00:17]} 47. Rb7 {[%clk 0:00:06]}  Rxh3 {[%clk 0:00:16]} 48. Bg4 {[%clk 0:00:06]}  Rg3 {[%clk 0:00:16]} 49. Be6 {[%clk 0:00:04]}  Rg1# {[%clk 0:00:16]} 0-1


[Site "https://www.chess.com"]

[Event "Titled Tuesday Blitz April 11 Early 2023"]
[White "Demchenko, Anton"]
[Black "Amilal Munkhdalai"]
[WhiteFideId "4160258"]
[BlackFideId "4903250"]
[WhiteElo "2545"]
[BlackElo "2293"]
[Result "1/2-1/2"]
[Round "03"]
[TimeControl "180+2"]
[Date "2023.04.11"]
[WhiteClock "0:00:02"]
[BlackClock "0:00:09"]

1. e4 {[%clk 0:02:55]}  c5 {[%clk 0:03:00]} 2. Nc3 {[%clk 0:02:51]}  e6 {[%clk 0:02:59]} 3. Nf3 {[%clk 0:02:48]}  Nc6 {[%clk 0:02:59]} 4. d4 {[%clk 0:02:48]}  cxd4 {[%clk 0:02:59]} 5. Nxd4 {[%clk 0:02:49]}  Qc7 {[%clk 0:03:00]} 6. Be3 {[%clk 0:02:47]}  a6 {[%clk 0:03:00]} 7. Bd3 {[%clk 0:02:47]}  Nf6 {[%clk 0:02:59]} 8. Qe2 {[%clk 0:02:47]}  d6 {[%clk 0:02:57]} 9. O-O {[%clk 0:02:42]}  Be7 {[%clk 0:02:57]} 10. f4 {[%clk 0:02:41]}  O-O {[%clk 0:02:50]} 11. Kh1 {[%clk 0:02:40]}  Bd7 {[%clk 0:02:36]} 12. Nf3 {[%clk 0:02:40]}  b5 {[%clk 0:02:34]} 13. Rae1 {[%clk 0:02:38]}  b4 {[%clk 0:02:34]} 14. Nd1 {[%clk 0:02:36]}  e5 {[%clk 0:02:31]} 15. Nf2 {[%clk 0:02:01]}  exf4 {[%clk 0:02:24]} 16. Bxf4 {[%clk 0:02:02]}  Ne5 {[%clk 0:02:24]} 17. Bxa6 {[%clk 0:01:47]}  Be6 {[%clk 0:02:08]} 18. Nd4 {[%clk 0:01:37]}  Nfd7 {[%clk 0:01:53]} 19. b3 {[%clk 0:01:18]}  Nc5 {[%clk 0:01:40]} 20. Nxe6 {[%clk 0:01:03]}  Nxe6 {[%clk 0:01:04]} 21. Bxe5 {[%clk 0:01:03]}  dxe5 {[%clk 0:01:05]} 22. Bc4 {[%clk 0:01:04]}  Nd4 {[%clk 0:01:04]} 23. Qd3 {[%clk 0:01:05]}  Rxa2 {[%clk 0:01:02]} 24. Ng4 {[%clk 0:01:05]}  Rxc2 {[%clk 0:01:00]} 25. Qg3 {[%clk 0:00:38]}  Kh8 {[%clk 0:00:38]} 26. Nxe5 {[%clk 0:00:30]}  Bd6 {[%clk 0:00:20]} 27. Rxf7 {[%clk 0:00:22]}  Rxf7 {[%clk 0:00:12]} 28. Nxf7+ {[%clk 0:00:21]}  Qxf7 {[%clk 0:00:12]} 29. Qxd6 {[%clk 0:00:22]}  Rxc4 {[%clk 0:00:03]} 30. Qd8+ {[%clk 0:00:22]}  Qg8 {[%clk 0:00:03]} 31. Qxg8+ {[%clk 0:00:23]}  Kxg8 {[%clk 0:00:03]} 32. bxc4 {[%clk 0:00:24]}  Kf7 {[%clk 0:00:04]} 33. Rd1 {[%clk 0:00:21]}  Nc6 {[%clk 0:00:03]} 34. Rd5 {[%clk 0:00:19]}  Ke6 {[%clk 0:00:02]} 35. Kg1 {[%clk 0:00:19]}  b3 {[%clk 0:00:03]} 36. Rb5 {[%clk 0:00:19]}  Nd4 {[%clk 0:00:03]} 37. Rb7 {[%clk 0:00:19]}  Ke5 {[%clk 0:00:03]} 38. Rxg7 {[%clk 0:00:17]}  Kxe4 {[%clk 0:00:04]} 39. Rb7 {[%clk 0:00:16]}  Kd3 {[%clk 0:00:05]} 40. c5 {[%clk 0:00:16]}  Kc3 {[%clk 0:00:05]} 41. Kf2 {[%clk 0:00:15]}  b2 {[%clk 0:00:06]} 42. Rxb2 {[%clk 0:00:14]}  Kxb2 {[%clk 0:00:06]} 43. Ke3 {[%clk 0:00:15]}  Kc3 {[%clk 0:00:06]} 44. Kf4 {[%clk 0:00:08]}  Kc4 {[%clk 0:00:07]} 45. Kg5 {[%clk 0:00:09]}  Kxc5 {[%clk 0:00:07]} 46. Kh6 {[%clk 0:00:09]}  Kd5 {[%clk 0:00:07]} 47. Kxh7 {[%clk 0:00:09]}  Ke4 {[%clk 0:00:08]} 48. Kg6 {[%clk 0:00:09]}  Nf5 {[%clk 0:00:08]} 49. Kg5 {[%clk 0:00:08]}  Ne3 {[%clk 0:00:08]} 50. g4 {[%clk 0:00:08]}  Kf3 {[%clk 0:00:09]} 51. h3 {[%clk 0:00:05]}  Kg3 {[%clk 0:00:09]} 52. Kf6 {[%clk 0:00:02]}  Nxg4+ {[%clk 0:00:08]} 53. hxg4 {[%clk 0:00:02]}  Kxg4 {[%clk 0:00:09]} 1/2-1/2


[Site "https://www.chess.com"]

[Event "Titled Tuesday Blitz April 11 Early 2023"]
[White "Weetik, Vjacheslav"]
[Black "Terry, Renato"]
[WhiteFideId "4153472"]
[BlackFideId "3803457"]
[WhiteElo "2469"]
[BlackElo "2575"]
[Result "1-0"]
[Round "03"]
[TimeControl "180+2"]
[Date "2023.04.11"]
[WhiteClock "0:00:13"]
[BlackClock "0:00:30"]

1. e4 {[%clk 0:02:59]}  e6 {[%clk 0:03:00]} 2. d4 {[%clk 0:02:56]}  d5 {[%clk 0:03:00]} 3. exd5 {[%clk 0:02:57]}  exd5 {[%clk 0:03:00]} 4. Nf3 {[%clk 0:02:57]}  Nc6 {[%clk 0:03:01]} 5. Bb5 {[%clk 0:02:54]}  Ne7 {[%clk 0:03:00]} 6. O-O {[%clk 0:02:53]}  a6 {[%clk 0:03:00]} 7. Ba4 {[%clk 0:02:50]}  b5 {[%clk 0:02:56]} 8. Bb3 {[%clk 0:02:50]}  Bg4 {[%clk 0:02:56]} 9. c3 {[%clk 0:02:44]}  Ng6 {[%clk 0:02:53]} 10. h3 {[%clk 0:02:41]}  Bf5 {[%clk 0:02:53]} 11. a4 {[%clk 0:02:34]}  Na5 {[%clk 0:02:48]} 12. Bc2 {[%clk 0:02:10]}  Bxc2 {[%clk 0:02:46]} 13. Qxc2 {[%clk 0:02:11]}  Be7 {[%clk 0:02:47]} 14. Nbd2 {[%clk 0:01:56]}  O-O {[%clk 0:02:46]} 15. b4 {[%clk 0:01:49]}  Nb7 {[%clk 0:02:37]} 16. Nb3 {[%clk 0:01:42]}  c6 {[%clk 0:02:32]} 17. Re1 {[%clk 0:01:41]}  Bd6 {[%clk 0:02:31]} 18. Qf5 {[%clk 0:01:27]}  Qc8 {[%clk 0:02:17]} 19. Qh5 {[%clk 0:01:26]}  f6 {[%clk 0:02:18]} 20. Bd2 {[%clk 0:01:21]}  Qd7 {[%clk 0:02:17]} 21. g3 {[%clk 0:01:15]}  Ne7 {[%clk 0:02:09]} 22. Kg2 {[%clk 0:01:09]}  Ng6 {[%clk 0:01:43]} 23. Qg4 {[%clk 0:01:01]}  Qxg4 {[%clk 0:01:42]} 24. hxg4 {[%clk 0:01:02]}  h6 {[%clk 0:01:43]} 25. Ra2 {[%clk 0:00:54]}  Rac8 {[%clk 0:01:12]} 26. axb5 {[%clk 0:00:47]}  axb5 {[%clk 0:01:13]} 27. Ra6 {[%clk 0:00:47]}  Rf7 {[%clk 0:01:09]} 28. Nc5 {[%clk 0:00:47]}  Rfc7 {[%clk 0:01:06]} 29. Nh4 {[%clk 0:00:36]}  Nxh4+ {[%clk 0:01:00]} 30. gxh4 {[%clk 0:00:36]}  Kf7 {[%clk 0:01:01]} 31. h5 {[%clk 0:00:34]}  Nd8 {[%clk 0:00:58]} 32. f4 {[%clk 0:00:24]}  Re7 {[%clk 0:00:56]} 33. Rxe7+ {[%clk 0:00:21]}  Kxe7 {[%clk 0:00:57]} 34. f5 {[%clk 0:00:20]}  Rc7 {[%clk 0:00:43]} 35. Kf3 {[%clk 0:00:19]}  Kf7 {[%clk 0:00:41]} 36. Bf4 {[%clk 0:00:20]}  Bxf4 {[%clk 0:00:39]} 37. Kxf4 {[%clk 0:00:21]}  Ke7 {[%clk 0:00:40]} 38. Ra8 {[%clk 0:00:20]}  Nb7 {[%clk 0:00:36]} 39. Ra7 {[%clk 0:00:19]}  Nxc5 {[%clk 0:00:31]} 40. Rxc7+ {[%clk 0:00:19]}  Kd6 {[%clk 0:00:32]} 41. Rxg7 {[%clk 0:00:16]}  Ne4 {[%clk 0:00:32]} 42. Rg6 {[%clk 0:00:15]}  Ke7 {[%clk 0:00:32]} 43. Rxh6 {[%clk 0:00:15]}  Nxc3 {[%clk 0:00:33]} 44. Rh7+ {[%clk 0:00:14]}  Kf8 {[%clk 0:00:33]} 45. Rc7 {[%clk 0:00:13]}  Na2 {[%clk 0:00:32]} 46. Rxc6 {[%clk 0:00:13]}  Nxb4 {[%clk 0:00:32]} 47. Rxf6+ {[%clk 0:00:14]}  Ke7 {[%clk 0:00:32]} 48. Rb6 {[%clk 0:00:14]}  Nc2 {[%clk 0:00:31]} 49. Ke5 {[%clk 0:00:14]}  Ne3 {[%clk 0:00:31]} 50. Rb7+ {[%clk 0:00:14]}  Ke8 {[%clk 0:00:30]} 51. g5 {[%clk 0:00:13]} 1-0


[Site "https://www.chess.com"]

[Event "Titled Tuesday Blitz April 11 Early 2023"]
[White "Petrov, Martin"]
[Black "Kollars, Dmitrij"]
[WhiteFideId "2911086"]
[BlackFideId "12909572"]
[WhiteElo "2430"]
[BlackElo "2584"]
[Result "0-1"]
[Round "03"]
[TimeControl "180+2"]
[Date "2023.04.11"]
[WhiteClock "0:00:04"]
[BlackClock "0:00:14"]

1. Nf3 {[%clk 0:03:00]}  d5 {[%clk 0:02:59]} 2. e3 {[%clk 0:03:00]}  Nf6 {[%clk 0:02:58]} 3. d4 {[%clk 0:03:00]}  c5 {[%clk 0:02:56]} 4. Nbd2 {[%clk 0:02:58]}  Nc6 {[%clk 0:02:53]} 5. dxc5 {[%clk 0:02:51]}  e6 {[%clk 0:02:48]} 6. a3 {[%clk 0:02:50]}  a5 {[%clk 0:02:40]} 7. Bd3 {[%clk 0:02:48]}  Bxc5 {[%clk 0:02:39]} 8. O-O {[%clk 0:02:47]}  b6 {[%clk 0:02:32]} 9. e4 {[%clk 0:02:46]}  Bb7 {[%clk 0:02:32]} 10. Qe2 {[%clk 0:02:36]}  Qc7 {[%clk 0:02:25]} 11. exd5 {[%clk 0:02:20]}  Nxd5 {[%clk 0:02:26]} 12. Ne4 {[%clk 0:02:20]}  Be7 {[%clk 0:02:11]} 13. g3 {[%clk 0:02:13]}  O-O {[%clk 0:02:06]} 14. b3 {[%clk 0:01:31]}  Ne5 {[%clk 0:01:45]} 15. Nxe5 {[%clk 0:01:18]}  Qxe5 {[%clk 0:01:45]} 16. Bd2 {[%clk 0:01:19]}  f5 {[%clk 0:01:30]} 17. Nc3 {[%clk 0:01:18]}  Bf6 {[%clk 0:01:01]} 18. Nxd5 {[%clk 0:01:10]}  Qxd5 {[%clk 0:00:59]} 19. f3 {[%clk 0:01:07]}  Bxa1 {[%clk 0:00:58]} 20. Bc4 {[%clk 0:01:06]}  Bd4+ {[%clk 0:00:57]} 21. Kg2 {[%clk 0:01:01]}  Qe5 {[%clk 0:00:57]} 22. Qd3 {[%clk 0:00:58]}  Rad8 {[%clk 0:00:50]} 23. Re1 {[%clk 0:00:56]}  Qc7 {[%clk 0:00:48]} 24. Rxe6 {[%clk 0:00:42]}  Kh8 {[%clk 0:00:48]} 25. Qe2 {[%clk 0:00:34]}  Bf6 {[%clk 0:00:34]} 26. Bf4 {[%clk 0:00:28]}  Qc5 {[%clk 0:00:33]} 27. Be3 {[%clk 0:00:27]}  Bd4 {[%clk 0:00:23]} 28. Bg5 {[%clk 0:00:26]}  Bd5 {[%clk 0:00:19]} 29. Bxd8 {[%clk 0:00:12]}  Bxe6 {[%clk 0:00:19]} 30. Qxe6 {[%clk 0:00:04]}  Rxd8 {[%clk 0:00:19]} 31. h4 {[%clk 0:00:05]}  Qe5 {[%clk 0:00:16]} 32. Qf7 {[%clk 0:00:04]}  h6 {[%clk 0:00:14]} 0-1


[Site "https://www.chess.com"]